[Event "12h Blitz Kuppenheim Endrunde"]
[Site "Kuppenheim"]
[Date "2005.06.04"]
[Round "?"]
[White "KingLoek"]
[Black "Mutschnik"]
[Result "1/2-1/2"]
[ECO "E97"]
[WhiteElo "2685"]
[BlackElo "2410"]
[PlyCount "95"]
[EventDate "2005.06.03"]
[EventType "blitz"]
[Source "Kuppenheim"]
[SourceDate "2005.01.01"]
[TimeControl "240"]

1. d4 {[%emt 0:00:01]} Nf6 {[%emt 0:00:02]} 2. Nf3 {[%emt 0:00:02]} g6 {
[%emt 0:00:01]} 3. c4 {[%emt 0:00:01]} Bg7 {[%emt 0:00:01]} 4. Nc3 {
[%emt 0:00:01]} O-O {[%emt 0:00:01]} 5. e4 {[%emt 0:00:01]} d6 {[%emt 0:00:01]}
6. Be2 {[%emt 0:00:01]} e5 {[%emt 0:00:01]} 7. O-O {[%emt 0:00:01]} Nc6 {
[%emt 0:00:01]} 8. d5 {[%emt 0:00:01]} Ne7 {[%emt 0:00:01]} 9. b4 {
[%emt 0:00:00]} Nh5 {[%emt 0:00:02]} 10. Re1 {[%emt 0:00:02]} f5 {
[%emt 0:00:02]} 11. Ng5 {[%emt 0:00:05]} Nf6 {[%emt 0:00:02]} 12. f3 {
[%emt 0:00:02]} Nh5 {[%emt 0:00:02]} 13. c5 {[%emt 0:00:03]} Nf4 {
[%emt 0:00:03]} 14. Bc4 {[%emt 0:00:02]} Kh8 {[%emt 0:00:02]} 15. Rb1 {
[%emt 0:00:04]} Nexd5 {[%emt 0:00:39]} 16. Nxd5 {[%emt 0:00:06]} Qxg5 {
[%emt 0:00:02]} 17. Bxf4 {[%emt 0:00:07]} exf4 {[%emt 0:00:02]} 18. Nxc7 {
[%emt 0:00:03]} Rb8 {[%emt 0:00:05]} 19. cxd6 {[%emt 0:00:10]} fxe4 {
[%emt 0:00:11]} 20. d7 {[%emt 0:00:31]} exf3 {[%emt 0:00:05]} 21. Qxf3 {
[%emt 0:00:20]} Bxd7 {[%emt 0:00:02]} 22. Ne6 {[%emt 0:00:07]} Bxe6 {
[%emt 0:00:02]} 23. Bxe6 {[%emt 0:00:07]} Rbe8 {[%emt 0:00:04]} 24. h3 {
[%emt 0:00:08]} Qg3 {[%emt 0:00:07]} 25. Kf1 {[%emt 0:00:08]} Qh2 {
[%emt 0:00:19]} 26. Rbd1 {[%emt 0:00:15]} Bf6 {[%emt 0:00:07]} 27. Re4 {
[%emt 0:00:03]} Rd8 {[%emt 0:00:10]} 28. Bd5 {[%emt 0:00:06]} b6 {
[%emt 0:00:16]} 29. Ke2 {[%emt 0:00:04]} Rfe8 {[%emt 0:00:02]} 30. Bc6 {
[%emt 0:00:21]} Rxe4+ {[%emt 0:00:05]} 31. Qxe4 {[%emt 0:00:04]} Rxd1 {
[%emt 0:00:06]} 32. Kxd1 {[%emt 0:00:01]} Qg1+ {[%emt 0:00:01]} 33. Ke2 {
[%emt 0:00:03]} Qd4 {[%emt 0:00:09]} 34. Qxd4 {[%emt 0:00:04]} Bxd4 {
[%emt 0:00:01]} 35. Kf3 {[%emt 0:00:01]} Be3 {[%emt 0:00:01]} 36. b5 {
[%emt 0:00:01]} Kg7 {[%emt 0:00:01]} 37. Bd5 {[%emt 0:00:02]} Kf6 {
[%emt 0:00:01]} 38. Bg8 {[%emt 0:00:01]} h6 {[%emt 0:00:01]} 39. Bc4 {
[%emt 0:00:01]} Ke5 {[%emt 0:00:02]} 40. Bd3 {[%emt 0:00:02]} g5 {
[%emt 0:00:01]} 41. a4 {[%emt 0:00:01]} Kd4 {[%emt 0:00:01]} 42. Bc2 {
[%emt 0:00:01]} Kc3 {[%emt 0:00:01]} 43. Bd1 {[%emt 0:00:00]} Kd2 {
[%emt 0:00:03]} 44. Bb3 {[%emt 0:00:01]} Ke1 {[%emt 0:00:01]} 45. Bc2 {
[%emt 0:00:01]} Kf1 {[%emt 0:00:02]} 46. Bd3+ {[%emt 0:00:01]} Kg1 {
[%emt 0:00:04]} 47. Bg6 {[%emt 0:00:00]} Kh2 {[%emt 0:00:01]} 48. Bh5 {
KingLoek offers a draw  (Lag: Av=0.53s, max=0.7s) [%emt 0:00:01]} 1/2-1/2

[Event "12h Blitz Kuppenheim Endrunde"]
[Site "Kuppenheim"]
[Date "2005.06.04"]
[Round "?"]
[White "Stockmann"]
[Black "KingLoek"]
[Result "0-1"]
[ECO "D11"]
[WhiteElo "2200"]
[BlackElo "2685"]
[PlyCount "48"]
[EventDate "2005.06.03"]
[EventType "blitz"]
[Source "Kuppenheim"]
[SourceDate "2005.01.01"]
[TimeControl "240"]

1. d4 {[%emt 0:00:05]} Nf6 {[%emt 0:00:02]} 2. Nf3 {[%emt 0:00:00]} d5 {
[%emt 0:00:01]} 3. g3 {[%emt 0:00:01]} Bf5 {[%emt 0:00:03]} 4. Bg2 {
[%emt 0:00:01]} e6 {[%emt 0:00:01]} 5. O-O {[%emt 0:00:00]} c6 {[%emt 0:00:02]}
6. c4 {[%emt 0:00:00]} Nbd7 {[%emt 0:00:02]} 7. Nc3 {[%emt 0:00:01]} dxc4 {
[%emt 0:00:02]} 8. Re1 {[%emt 0:00:05]} Bb4 {[%emt 0:00:05]} 9. Bg5 {
[%emt 0:00:09]} h6 {[%emt 0:00:02]} 10. Bxf6 {[%emt 0:00:02]} Nxf6 {
[%emt 0:00:01]} 11. Ne5 {[%emt 0:00:01]} O-O {[%emt 0:00:15]} 12. Nxc4 {
[%emt 0:00:03]} Rc8 {[%emt 0:00:07]} 13. Rc1 {[%emt 0:00:03]} Qe7 {
[%emt 0:00:06]} 14. a3 {[%emt 0:00:03]} Bxc3 {[%emt 0:00:01]} 15. Rxc3 {
[%emt 0:00:01]} Rfd8 {[%emt 0:00:01]} 16. e3 {[%emt 0:00:17]} c5 {
[%emt 0:00:02]} 17. Ne5 {[%emt 0:00:02]} Ne4 {[%emt 0:00:12]} 18. Rc1 {
[%emt 0:00:08]} Qf6 {[%emt 0:00:09]} 19. Qa4 {[%emt 0:00:21]} Nxf2 {
[%emt 0:00:29]} 20. Nd7 {[%emt 0:00:13]} Qe7 {[%emt 0:00:11]} 21. Nxc5 {
[%emt 0:00:15]} b6 {[%emt 0:00:03]} 22. Na6 {[%emt 0:00:07]} Nd3 {
[%emt 0:00:07]} 23. Rxc8 {[%emt 0:00:03]} Rxc8 {[%emt 0:00:03]} 24. Rd1 {
[%emt 0:00:03]} Nxb2 {
Kuppenheim gibt auf  (Lag: Av=0.56s, max=1.6s) [%emt 0:00:04]} 0-1

[Event "12h Blitz Kuppenheim Endrunde"]
[Site "Kuppenheim"]
[Date "2005.06.04"]
[Round "?"]
[White "KingLoek"]
[Black "Telljohann"]
[Result "1-0"]
[ECO "A40"]
[WhiteElo "2685"]
[BlackElo "2400"]
[PlyCount "127"]
[EventDate "2005.06.03"]
[EventType "blitz"]
[Source "Kuppenheim"]
[SourceDate "2005.01.01"]
[TimeControl "240"]

1. d4 {[%emt 0:00:01]} g6 {[%emt 0:00:00]} 2. c4 {[%emt 0:00:02]} Bg7 {
[%emt 0:00:00]} 3. Nf3 {[%emt 0:00:01]} c5 {[%emt 0:00:01]} 4. d5 {
[%emt 0:00:01]} Nf6 {[%emt 0:00:01]} 5. Nc3 {[%emt 0:00:01]} O-O {
[%emt 0:00:00]} 6. e4 {[%emt 0:00:01]} d6 {[%emt 0:00:01]} 7. h3 {
[%emt 0:00:01]} Na6 {[%emt 0:00:01]} 8. Bd3 {[%emt 0:00:03]} Nc7 {
[%emt 0:00:01]} 9. O-O {[%emt 0:00:02]} a6 {[%emt 0:00:01]} 10. a4 {
[%emt 0:00:02]} Rb8 {[%emt 0:00:01]} 11. Re1 {[%emt 0:00:04]} e6 {
[%emt 0:00:02]} 12. Bg5 {[%emt 0:00:06]} h6 {[%emt 0:00:02]} 13. Be3 {
[%emt 0:00:02]} e5 {[%emt 0:00:02]} 14. Qd2 {[%emt 0:00:02]} Kh7 {
[%emt 0:00:02]} 15. Rab1 {[%emt 0:00:01]} a5 {[%emt 0:00:09]} 16. Nh2 {
[%emt 0:00:04]} Nd7 {[%emt 0:00:08]} 17. b3 {[%emt 0:00:03]} b6 {[%emt 0:00:02]
} 18. Ne2 {[%emt 0:00:02]} Ne8 {[%emt 0:00:01]} 19. Ng4 {[%emt 0:00:07]} h5 {
[%emt 0:00:03]} 20. Nh2 {[%emt 0:00:01]} Nef6 {[%emt 0:00:03]} 21. Rf1 {
[%emt 0:00:02]} Ng8 {[%emt 0:00:02]} 22. Rbe1 {[%emt 0:00:02]} Qe7 {
[%emt 0:00:02]} 23. Nf3 {[%emt 0:00:02]} Bh6 {[%emt 0:00:05]} 24. Ng5+ {
[%emt 0:00:02]} Kg7 {[%emt 0:00:09]} 25. Kh1 {[%emt 0:00:06]} Ndf6 {
[%emt 0:00:07]} 26. f4 {[%emt 0:00:03]} exf4 {[%emt 0:00:04]} 27. Bxf4 {
[%emt 0:00:02]} Nd7 {[%emt 0:00:04]} 28. Qb2+ {[%emt 0:00:03]} Ne5 {
[%emt 0:00:03]} 29. Nf3 {[%emt 0:00:06]} f6 {[%emt 0:00:01]} 30. Bb1 {
[%emt 0:00:09]} Bd7 {[%emt 0:00:05]} 31. Rf2 {[%emt 0:00:04]} Rf7 {
[%emt 0:00:01]} 32. Ref1 {[%emt 0:00:01]} Rbf8 {[%emt 0:00:01]} 33. Qd2 {
[%emt 0:00:03]} g5 {[%emt 0:00:04]} 34. Be3 {[%emt 0:00:03]} h4 {[%emt 0:00:08]
} 35. Nh2 {[%emt 0:00:06]} Qd8 {[%emt 0:00:13]} 36. Bc2 {[%emt 0:00:02]} Qe7 {
[%emt 0:00:01]} 37. Ng1 {[%emt 0:00:03]} Qd8 {[%emt 0:00:02]} 38. Bd1 {
[%emt 0:00:01]} Kh7 {[%emt 0:00:06]} 39. Bh5 {[%emt 0:00:03]} Rg7 {
[%emt 0:00:01]} 40. Ngf3 {[%emt 0:00:03]} Nxf3 {[%emt 0:00:05]} 41. Rxf3 {
[%emt 0:00:01]} Qe7 {[%emt 0:00:02]} 42. Qd3 {[%emt 0:00:03]} Kh8 {
[%emt 0:00:02]} 43. Ng4 {[%emt 0:00:03]} Be8 {[%emt 0:00:06]} 44. Bxe8 {
[%emt 0:00:04]} Rxe8 {[%emt 0:00:07]} 45. Nxh6 {[%emt 0:00:03]} Nxh6 {
[%emt 0:00:01]} 46. Rxf6 {[%emt 0:00:01]} Ng8 {[%emt 0:00:08]} 47. Re6 {
[%emt 0:00:04]} Qd7 {[%emt 0:00:01]} 48. Rxe8 {[%emt 0:00:05]} Qxe8 {
[%emt 0:00:01]} 49. Bd2 {[%emt 0:00:01]} Rg6 {[%emt 0:00:12]} 50. Rf5 {
[%emt 0:00:06]} Ne7 {[%emt 0:00:05]} 51. Rxg5 {[%emt 0:00:04]} Rxg5 {
[%emt 0:00:02]} 52. Bxg5 {[%emt 0:00:02]} Ng6 {[%emt 0:00:01]} 53. Qf3 {
[%emt 0:00:03]} Kg7 {[%emt 0:00:07]} 54. Qf6+ {[%emt 0:00:02]} Kh7 {
[%emt 0:00:01]} 55. Qf5 {[%emt 0:00:06]} Kg7 {[%emt 0:00:03]} 56. Bf6+ {
[%emt 0:00:02]} Kg8 {[%emt 0:00:06]} 57. Bc3 {[%emt 0:00:06]} Qf7 {
[%emt 0:00:03]} 58. Qxf7+ {[%emt 0:00:08]} Kxf7 {[%emt 0:00:01]} 59. Kg1 {
[%emt 0:00:02]} Nf4 {[%emt 0:00:02]} 60. Kf2 {[%emt 0:00:02]} Kg6 {
[%emt 0:00:01]} 61. Bd2 {[%emt 0:00:04]} Nd3+ {[%emt 0:00:02]} 62. Kf3 {
[%emt 0:00:03]} Ne5+ {[%emt 0:00:01]} 63. Ke2 {[%emt 0:00:02]} Nd7 {
[%emt 0:00:05]} 64. Bf4 {
Kuppenheim gibt auf  (Lag: Av=0.53s, max=0.7s) [%emt 0:00:01]} 1-0

[Event "12h Blitz Kuppenheim Endrunde"]
[Site "Kuppenheim"]
[Date "2005.06.04"]
[Round "?"]
[White "Paleologu"]
[Black "KingLoek"]
[Result "0-1"]
[ECO "C51"]
[WhiteElo "2150"]
[BlackElo "2685"]
[PlyCount "136"]
[EventDate "2005.06.03"]
[EventType "blitz"]
[Source "Kuppenheim"]
[SourceDate "2005.01.01"]
[TimeControl "240"]

1. e4 {[%emt 0:00:03]} e5 {[%emt 0:00:01]} 2. Nf3 {[%emt 0:00:02]} Nc6 {
[%emt 0:00:01]} 3. Bc4 {[%emt 0:00:03]} Bc5 {[%emt 0:00:02]} 4. b4 {
[%emt 0:00:03]} Bxb4 {[%emt 0:00:02]} 5. c3 {[%emt 0:00:01]} Bd6 {
[%emt 0:00:01]} 6. d4 {[%emt 0:00:06]} Nf6 {[%emt 0:00:09]} 7. Nbd2 {
[%emt 0:00:04]} O-O {[%emt 0:00:03]} 8. O-O {[%emt 0:00:02]} Qe7 {
[%emt 0:00:09]} 9. Re1 {[%emt 0:00:03]} b6 {[%emt 0:00:07]} 10. Nf1 {
[%emt 0:00:04]} Na5 {[%emt 0:00:17]} 11. Bb3 {[%emt 0:00:07]} Nxb3 {
[%emt 0:00:02]} 12. axb3 {[%emt 0:00:02]} Qe6 {[%emt 0:00:15]} 13. Ng3 {
[%emt 0:00:07]} h6 {[%emt 0:00:05]} 14. Nf5 {[%emt 0:00:05]} Ne8 {
[%emt 0:00:07]} 15. c4 {[%emt 0:00:14]} Bb4 {[%emt 0:00:15]} 16. Bd2 {
[%emt 0:00:16]} Bxd2 {[%emt 0:00:03]} 17. Qxd2 {[%emt 0:00:02]} d6 {
[%emt 0:00:01]} 18. d5 {[%emt 0:00:13]} Qf6 {[%emt 0:00:04]} 19. Ng3 {
[%emt 0:00:04]} Qe7 {[%emt 0:00:08]} 20. Ra2 {[%emt 0:00:09]} Nf6 {
[%emt 0:00:07]} 21. b4 {[%emt 0:00:05]} Bg4 {[%emt 0:00:12]} 22. Qd3 {
[%emt 0:00:08]} Rfc8 {[%emt 0:00:18]} 23. Rea1 {[%emt 0:00:05]} c6 {
[%emt 0:00:05]} 24. h3 {[%emt 0:00:03]} Bxf3 {[%emt 0:00:05]} 25. Qxf3 {
[%emt 0:00:02]} cxd5 {[%emt 0:00:01]} 26. Nf5 {[%emt 0:00:03]} Qf8 {
[%emt 0:00:14]} 27. Nxh6+ {[%emt 0:00:04]} gxh6 {[%emt 0:00:03]} 28. Qxf6 {
[%emt 0:00:03]} dxc4 {[%emt 0:00:02]} 29. Ra3 {[%emt 0:00:10]} c3 {
[%emt 0:00:10]} 30. Rc1 {[%emt 0:00:02]} Qg7 {[%emt 0:00:07]} 31. Qxd6 {
[%emt 0:00:04]} Qg6 {[%emt 0:00:10]} 32. Qxe5 {[%emt 0:00:05]} Re8 {
[%emt 0:00:03]} 33. Qg3 {[%emt 0:00:05]} Qxg3 {[%emt 0:00:01]} 34. fxg3 {
[%emt 0:00:01]} Rac8 {[%emt 0:00:01]} 35. Raxc3 {[%emt 0:00:02]} Rxc3 {
[%emt 0:00:01]} 36. Rxc3 {[%emt 0:00:02]} Rxe4 {[%emt 0:00:00]} 37. b5 {
[%emt 0:00:03]} Rb4 {[%emt 0:00:01]} 38. Ra3 {[%emt 0:00:02]} Rxb5 {
[%emt 0:00:01]} 39. Rxa7 {[%emt 0:00:02]} h5 {[%emt 0:00:01]} 40. Kh2 {
[%emt 0:00:04]} Kg7 {[%emt 0:00:01]} 41. h4 {[%emt 0:00:03]} Rb4 {
[%emt 0:00:02]} 42. Kh3 {[%emt 0:00:04]} Kg6 {[%emt 0:00:01]} 43. Rb7 {
[%emt 0:00:02]} f6 {[%emt 0:00:01]} 44. Kh2 {[%emt 0:00:04]} Rb1 {
[%emt 0:00:01]} 45. g4 {[%emt 0:00:04]} hxg4 {[%emt 0:00:02]} 46. Kg3 {
[%emt 0:00:01]} Kf5 {[%emt 0:00:00]} 47. h5 {[%emt 0:00:02]} Rb3+ {
[%emt 0:00:00]} 48. Kh4 {[%emt 0:00:02]} Rb1 {[%emt 0:00:01]} 49. h6 {
[%emt 0:00:04]} Rh1+ {[%emt 0:00:01]} 50. Kg3 {[%emt 0:00:01]} Rxh6 {
[%emt 0:00:00]} 51. Rxb6 {[%emt 0:00:01]} Kg5 {[%emt 0:00:00]} 52. Rb5+ {
[%emt 0:00:01]} f5 {[%emt 0:00:01]} 53. Ra5 {[%emt 0:00:02]} Re6 {
[%emt 0:00:00]} 54. Kf2 {[%emt 0:00:02]} Rd6 {[%emt 0:00:01]} 55. g3 {
[%emt 0:00:01]} Rd2+ {[%emt 0:00:01]} 56. Kg1 {[%emt 0:00:02]} Rb2 {
[%emt 0:00:00]} 57. Rc5 {[%emt 0:00:01]} Kf6 {[%emt 0:00:01]} 58. Ra5 {
[%emt 0:00:02]} Ke6 {[%emt 0:00:00]} 59. Rc5 {[%emt 0:00:02]} Rd2 {
[%emt 0:00:00]} 60. Ra5 {[%emt 0:00:01]} Rd5 {[%emt 0:00:00]} 61. Ra6+ {
[%emt 0:00:01]} Ke5 {[%emt 0:00:00]} 62. Kf2 {[%emt 0:00:02]} Rd2+ {
[%emt 0:00:00]} 63. Kg1 {[%emt 0:00:02]} Rd3 {[%emt 0:00:01]} 64. Ra4 {
[%emt 0:00:02]} Rxg3+ {[%emt 0:00:02]} 65. Kf2 {[%emt 0:00:01]} Rf3+ {
[%emt 0:00:00]} 66. Ke2 {[%emt 0:00:01]} Rf4 {[%emt 0:00:01]} 67. Ra5+ {
[%emt 0:00:03]} Kf6 {[%emt 0:00:00]} 68. Rb5 {[%emt 0:00:02]} Kg5 {
Zeit  (Lag: Av=0.52s, max=1.8s) . [%emt 0:00:00]} 0-1

[Event "12h Blitz Kuppenheim Endrunde"]
[Site "Kuppenheim"]
[Date "2005.06.04"]
[Round "?"]
[White "KingLoek"]
[Black "Manik"]
[Result "1-0"]
[ECO "D15"]
[WhiteElo "2685"]
[BlackElo "2500"]
[PlyCount "79"]
[EventDate "2005.06.03"]
[EventType "blitz"]
[Source "Kuppenheim"]
[SourceDate "2005.01.01"]
[TimeControl "240"]

1. d4 {[%emt 0:00:02]} d5 {[%emt 0:00:04]} 2. c4 {[%emt 0:00:01]} c6 {
[%emt 0:00:01]} 3. Nc3 {[%emt 0:00:01]} Nf6 {[%emt 0:00:01]} 4. Nf3 {
[%emt 0:00:01]} a6 {[%emt 0:00:01]} 5. a4 {[%emt 0:00:02]} e6 {[%emt 0:00:01]}
6. Bg5 {[%emt 0:00:03]} a5 {[%emt 0:00:01]} 7. e3 {[%emt 0:00:05]} Na6 {
[%emt 0:00:02]} 8. Be2 {[%emt 0:00:04]} Be7 {[%emt 0:00:01]} 9. O-O {
[%emt 0:00:04]} O-O {[%emt 0:00:01]} 10. Ne5 {[%emt 0:00:03]} Nd7 {
[%emt 0:00:03]} 11. Bxe7 {[%emt 0:00:01]} Qxe7 {[%emt 0:00:01]} 12. f4 {
[%emt 0:00:00]} f5 {[%emt 0:00:08]} 13. Nf3 {[%emt 0:00:09]} b6 {[%emt 0:00:05]
} 14. Rc1 {[%emt 0:00:06]} Nb4 {[%emt 0:00:03]} 15. Qd2 {[%emt 0:00:03]} Bb7 {
[%emt 0:00:02]} 16. b3 {[%emt 0:00:02]} c5 {[%emt 0:00:07]} 17. Nb5 {
[%emt 0:00:04]} Nf6 {[%emt 0:00:13]} 18. Ne5 {[%emt 0:00:01]} Ne4 {
[%emt 0:00:02]} 19. Qb2 {[%emt 0:00:01]} Rac8 {[%emt 0:00:11]} 20. Bf3 {
[%emt 0:00:01]} Nf6 {[%emt 0:00:35]} 21. Rfd1 {[%emt 0:00:11]} Rfd8 {
[%emt 0:00:01]} 22. h3 {[%emt 0:00:05]} h6 {[%emt 0:00:02]} 23. Kh2 {
[%emt 0:00:07]} Kh7 {[%emt 0:00:01]} 24. Qb1 {[%emt 0:00:08]} dxc4 {
[%emt 0:00:05]} 25. bxc4 {[%emt 0:00:04]} Bxf3 {[%emt 0:00:03]} 26. Nxf3 {
[%emt 0:00:03]} Ne4 {[%emt 0:00:01]} 27. Qb3 {[%emt 0:00:12]} cxd4 {
[%emt 0:00:26]} 28. exd4 {[%emt 0:00:02]} Rd7 {[%emt 0:00:07]} 29. Ne5 {
[%emt 0:00:04]} Rdd8 {[%emt 0:00:01]} 30. Qe3 {[%emt 0:00:04]} Qf6 {
[%emt 0:00:07]} 31. g4 {[%emt 0:00:08]} Nd6 {[%emt 0:00:04]} 32. Nxd6 {
[%emt 0:00:07]} Rxd6 {[%emt 0:00:01]} 33. g5 {[%emt 0:00:01]} Qf8 {
[%emt 0:00:05]} 34. Rg1 {[%emt 0:00:08]} Rcd8 {[%emt 0:00:06]} 35. Nf3 {
[%emt 0:00:05]} h5 {[%emt 0:00:05]} 36. g6+ {[%emt 0:00:02]} Kg8 {
[%emt 0:00:01]} 37. c5 {[%emt 0:00:25]} bxc5 {[%emt 0:00:02]} 38. dxc5 {
[%emt 0:00:01]} Rd3 {[%emt 0:00:03]} 39. Qxe6+ {[%emt 0:00:01]} Kh8 {
[%emt 0:00:02]} 40. Rg5 {
Kuppenheim gibt auf  (Lag: Av=0.54s, max=1.6s) [%emt 0:00:02]} 1-0

[Event "12h Blitz Kuppenheim Endrunde"]
[Site "Kuppenheim"]
[Date "2005.06.04"]
[Round "?"]
[White "Riff, J-M."]
[Black "KingLoek"]
[Result "0-1"]
[ECO "B85"]
[WhiteElo "2440"]
[BlackElo "2685"]
[PlyCount "86"]
[EventDate "2005.06.03"]
[EventType "blitz"]
[Source "Kuppenheim"]
[SourceDate "2005.01.01"]
[TimeControl "240"]

1. e4 {[%emt 0:00:01]} c5 {[%emt 0:00:01]} 2. Nf3 {[%emt 0:00:01]} d6 {
[%emt 0:00:01]} 3. d4 {[%emt 0:00:01]} cxd4 {[%emt 0:00:00]} 4. Nxd4 {
[%emt 0:00:01]} Nf6 {[%emt 0:00:00]} 5. Nc3 {[%emt 0:00:01]} a6 {[%emt 0:00:00]
} 6. Be2 {[%emt 0:00:01]} e6 {[%emt 0:00:01]} 7. O-O {[%emt 0:00:02]} Be7 {
[%emt 0:00:00]} 8. f4 {[%emt 0:00:01]} O-O {[%emt 0:00:01]} 9. Bf3 {
[%emt 0:00:01]} Qc7 {[%emt 0:00:03]} 10. Be3 {[%emt 0:00:01]} Re8 {
[%emt 0:00:04]} 11. a4 {[%emt 0:00:03]} Nc6 {[%emt 0:00:02]} 12. Nxc6 {
[%emt 0:00:02]} bxc6 {[%emt 0:00:02]} 13. a5 {[%emt 0:00:00]} Nd7 {
[%emt 0:00:10]} 14. Na4 {[%emt 0:00:05]} c5 {[%emt 0:00:02]} 15. c4 {
[%emt 0:00:05]} Bb7 {[%emt 0:00:02]} 16. Nc3 {[%emt 0:00:05]} Rab8 {
[%emt 0:00:03]} 17. Qc2 {[%emt 0:00:02]} Bc6 {[%emt 0:00:03]} 18. Rfd1 {
[%emt 0:00:02]} Rb4 {[%emt 0:00:02]} 19. b3 {[%emt 0:00:06]} Reb8 {
[%emt 0:00:08]} 20. Ra3 {[%emt 0:00:01]} Qb7 {[%emt 0:00:09]} 21. Rb1 {
[%emt 0:00:21]} Qc7 {[%emt 0:00:06]} 22. Rd1 {[%emt 0:00:07]} Nf6 {
[%emt 0:00:13]} 23. Na2 {[%emt 0:00:11]} R4b7 {[%emt 0:00:07]} 24. Nc1 {
[%emt 0:00:01]} Bf8 {[%emt 0:00:14]} 25. Ra2 {[%emt 0:00:05]} Rb4 {
[%emt 0:00:04]} 26. Bd2 {[%emt 0:00:06]} R4b7 {[%emt 0:00:03]} 27. Bc3 {
[%emt 0:00:01]} Nd7 {[%emt 0:00:03]} 28. Qf2 {[%emt 0:00:02]} Be7 {
[%emt 0:00:03]} 29. Rad2 {[%emt 0:00:03]} Nf6 {[%emt 0:00:05]} 30. Qg3 {
[%emt 0:00:04]} g6 {[%emt 0:00:07]} 31. e5 {[%emt 0:00:02]} Ne8 {[%emt 0:00:27]
} 32. exd6 {[%emt 0:00:07]} Bxd6 {[%emt 0:00:03]} 33. Rxd6 {[%emt 0:00:02]}
Nxd6 {[%emt 0:00:03]} 34. Be5 {[%emt 0:00:01]} Bxf3 {[%emt 0:00:07]} 35. gxf3 {
[%emt 0:00:04]} Rd8 {[%emt 0:00:07]} 36. f5 {[%emt 0:00:01]} Nxf5 {
[%emt 0:00:08]} 37. Rxd8+ {[%emt 0:00:20]} Qxd8 {[%emt 0:00:01]} 38. Qf4 {
[%emt 0:00:08]} g5 {[%emt 0:00:13]} 39. Qe4 {[%emt 0:00:06]} Rd7 {
[%emt 0:00:07]} 40. Ne2 {[%emt 0:00:01]} Rd2 {[%emt 0:00:01]} 41. Kf2 {
[%emt 0:00:01]} Nd4 {[%emt 0:00:03]} 42. Kf1 {[%emt 0:00:20]} Rxe2 {
[%emt 0:00:03]} 43. Qg4 {[%emt 0:00:01]} Rxe5 {
Kuppenheim gibt auf  (Lag: Av=0.50s, max=0.7s) [%emt 0:00:01]} 0-1

[Event "12h Blitz Kuppenheim Endrunde"]
[Site "Kuppenheim"]
[Date "2005.06.04"]
[Round "?"]
[White "KingLoek"]
[Black "Riff, S."]
[Result "1-0"]
[ECO "E91"]
[WhiteElo "2685"]
[BlackElo "2200"]
[PlyCount "89"]
[EventDate "2005.06.03"]
[EventType "blitz"]
[Source "Kuppenheim"]
[SourceDate "2005.01.01"]
[TimeControl "240"]

1. d4 {[%emt 0:00:01]} Nf6 {[%emt 0:00:02]} 2. Nf3 {[%emt 0:00:02]} g6 {
[%emt 0:00:01]} 3. c4 {[%emt 0:00:01]} Bg7 {[%emt 0:00:01]} 4. Nc3 {
[%emt 0:00:01]} O-O {[%emt 0:00:02]} 5. e4 {[%emt 0:00:01]} d6 {[%emt 0:00:01]}
6. Be2 {[%emt 0:00:01]} Na6 {[%emt 0:00:02]} 7. O-O {[%emt 0:00:02]} e5 {
[%emt 0:00:00]} 8. Re1 {[%emt 0:00:01]} exd4 {[%emt 0:00:01]} 9. Nxd4 {
[%emt 0:00:01]} Nc5 {[%emt 0:00:01]} 10. f3 {[%emt 0:00:04]} a5 {[%emt 0:00:01]
} 11. Bf1 {[%emt 0:00:02]} c6 {[%emt 0:00:01]} 12. Be3 {[%emt 0:00:02]} Qc7 {
[%emt 0:00:02]} 13. Qd2 {[%emt 0:00:01]} Ne6 {[%emt 0:00:02]} 14. Rad1 {
[%emt 0:00:01]} Ne8 {[%emt 0:00:06]} 15. Na4 {[%emt 0:00:09]} Nxd4 {
[%emt 0:00:07]} 16. Bxd4 {[%emt 0:00:01]} Be6 {[%emt 0:00:02]} 17. b3 {
[%emt 0:00:05]} Rb8 {[%emt 0:00:06]} 18. Bb6 {[%emt 0:00:03]} Qe7 {
[%emt 0:00:01]} 19. Qxa5 {[%emt 0:00:10]} Qh4 {[%emt 0:00:08]} 20. Bf2 {
[%emt 0:00:06]} Qe7 {[%emt 0:00:05]} 21. Qd2 {[%emt 0:00:03]} b5 {
[%emt 0:00:09]} 22. cxb5 {[%emt 0:00:02]} cxb5 {[%emt 0:00:01]} 23. Nc3 {
[%emt 0:00:01]} b4 {[%emt 0:00:03]} 24. Nd5 {[%emt 0:00:10]} Qb7 {
[%emt 0:00:07]} 25. Bc4 {[%emt 0:00:05]} Nc7 {[%emt 0:00:21]} 26. Nxc7 {
[%emt 0:00:07]} Bxc4 {[%emt 0:00:02]} 27. Nd5 {[%emt 0:00:09]} Bxd5 {
[%emt 0:00:07]} 28. Qxd5 {[%emt 0:00:01]} Qxd5 {[%emt 0:00:01]} 29. Rxd5 {
[%emt 0:00:02]} Ra8 {[%emt 0:00:01]} 30. Re2 {[%emt 0:00:02]} Ra6 {
[%emt 0:00:01]} 31. Be1 {[%emt 0:00:07]} Rb8 {[%emt 0:00:05]} 32. Rc2 {
[%emt 0:00:04]} Bf8 {[%emt 0:00:02]} 33. Kf1 {[%emt 0:00:05]} Rba8 {
[%emt 0:00:01]} 34. Bxb4 {[%emt 0:00:03]} Rxa2 {[%emt 0:00:01]} 35. Rxa2 {
[%emt 0:00:01]} Rxa2 {[%emt 0:00:00]} 36. Bxd6 {[%emt 0:00:03]} Ra1+ {
[%emt 0:00:01]} 37. Kf2 {[%emt 0:00:02]} Ra2+ {[%emt 0:00:02]} 38. Kg3 {
[%emt 0:00:01]} Bg7 {[%emt 0:00:04]} 39. b4 {[%emt 0:00:03]} Ra6 {
[%emt 0:00:02]} 40. Kh3 {[%emt 0:00:09]} Bf6 {[%emt 0:00:02]} 41. b5 {
[%emt 0:00:02]} Ra2 {[%emt 0:00:06]} 42. e5 {[%emt 0:00:02]} Bg5 {
[%emt 0:00:02]} 43. e6 {[%emt 0:00:04]} Be3 {[%emt 0:00:08]} 44. e7 {
[%emt 0:00:05]} Ra8 {[%emt 0:00:06]} 45. Re5 {
Kuppenheim gibt auf  (Lag: Av=0.54s, max=0.7s) [%emt 0:00:02]} 1-0